[Event "Titled Tuesday Blitz November 07 Late 2023"]
[White "Samarth J Rao"]
[Black "Bilan, Danila"]
[WhiteFideId "46652370"]
[BlackFideId "24161918"]
[WhiteElo "2083"]
[BlackElo "2514"]
[Result "1-0"]
[Round "3"]
[TimeControl "180+1"]
[Date "2023.11.07"]
[WhiteClock "0:00:23"]
[BlackClock "0:00:17"]
[Board "121"]

1. e4 {[%clk 0:03:00]}  c6 {[%clk 0:02:59]} 2. d4 {[%clk 0:03:00]}  d5 {[%clk 0:02:59]} 3. Nc3 {[%clk 0:03:01]}  b5 {[%clk 0:02:58]} 4. exd5 {[%clk 0:02:53]}  b4 {[%clk 0:02:58]} 5. Ne4 {[%clk 0:02:52]}  cxd5 {[%clk 0:02:58]} 6. Ng3 {[%clk 0:02:52]}  Nf6 {[%clk 0:02:58]} 7. Nf3 {[%clk 0:02:51]}  a5 {[%clk 0:02:58]} 8. Bb5+ {[%clk 0:02:49]}  Bd7 {[%clk 0:02:58]} 9. Bd3 {[%clk 0:02:49]}  g6 {[%clk 0:02:53]} 10. O-O {[%clk 0:02:47]}  Bg7 {[%clk 0:02:53]} 11. Ne5 {[%clk 0:02:46]}  Nc6 {[%clk 0:02:48]} 12. c3 {[%clk 0:02:32]}  Nxe5 {[%clk 0:02:42]} 13. dxe5 {[%clk 0:02:31]}  Ng4 {[%clk 0:02:40]} 14. cxb4 {[%clk 0:01:51]}  axb4 {[%clk 0:02:36]} 15. Be2 {[%clk 0:01:42]}  Nxe5 {[%clk 0:02:18]} 16. Qxd5 {[%clk 0:01:41]}  Bc6 {[%clk 0:02:05]} 17. Qc5 {[%clk 0:01:34]}  Qd5 {[%clk 0:01:51]} 18. Qxd5 {[%clk 0:01:28]}  Bxd5 {[%clk 0:01:42]} 19. Bb5+ {[%clk 0:01:24]}  Kf8 {[%clk 0:01:37]} 20. Bd2 {[%clk 0:01:18]}  Rb8 {[%clk 0:01:23]} 21. Rfc1 {[%clk 0:00:58]}  f5 {[%clk 0:01:13]} 22. Rc5 {[%clk 0:00:49]}  Be6 {[%clk 0:00:45]} 23. Bf4 {[%clk 0:00:45]}  Rxb5 {[%clk 0:00:37]} 24. Rxb5 {[%clk 0:00:46]}  Nd3 {[%clk 0:00:33]} 25. Bd2 {[%clk 0:00:44]}  Kf7 {[%clk 0:00:29]} 26. Bxb4 {[%clk 0:00:40]}  Nxb2 {[%clk 0:00:28]} 27. Rb7 {[%clk 0:00:33]}  Ra8 {[%clk 0:00:25]} 28. Rxe7+ {[%clk 0:00:29]}  Kf6 {[%clk 0:00:24]} 29. Rxg7 {[%clk 0:00:29]}  Kxg7 {[%clk 0:00:24]} 30. Bc3+ {[%clk 0:00:29]}  Kf7 {[%clk 0:00:24]} 31. Bxb2 {[%clk 0:00:30]}  Rxa2 {[%clk 0:00:22]} 32. Rxa2 {[%clk 0:00:30]}  Bxa2 {[%clk 0:00:23]} 33. f4 {[%clk 0:00:30]}  Bd5 {[%clk 0:00:21]} 34. Kf2 {[%clk 0:00:30]}  Ke6 {[%clk 0:00:22]} 35. Nf1 {[%clk 0:00:31]}  Bc4 {[%clk 0:00:22]} 36. Ne3 {[%clk 0:00:31]}  Ba2 {[%clk 0:00:23]} 37. h4 {[%clk 0:00:32]}  Bb1 {[%clk 0:00:23]} 38. g3 {[%clk 0:00:32]}  Be4 {[%clk 0:00:23]} 39. Be5 {[%clk 0:00:33]}  Bc6 {[%clk 0:00:23]} 40. Ke1 {[%clk 0:00:33]}  Bf3 {[%clk 0:00:24]} 41. Kd2 {[%clk 0:00:34]}  h6 {[%clk 0:00:24]} 42. Kc3 {[%clk 0:00:35]}  g5 {[%clk 0:00:24]} 43. Kd4 {[%clk 0:00:33]}  gxh4 {[%clk 0:00:24]} 44. gxh4 {[%clk 0:00:34]}  Be2 {[%clk 0:00:24]} 45. Nc2 {[%clk 0:00:29]}  Bf3 {[%clk 0:00:23]} 46. Kc5 {[%clk 0:00:29]}  Be4 {[%clk 0:00:21]} 47. Nd4+ {[%clk 0:00:29]}  Ke7 {[%clk 0:00:22]} 48. Bg7 {[%clk 0:00:28]}  h5 {[%clk 0:00:21]} 49. Nc6+ {[%clk 0:00:26]}  Kf7 {[%clk 0:00:20]} 50. Bh6 {[%clk 0:00:25]}  Ke6 {[%clk 0:00:20]} 51. Bg5 {[%clk 0:00:24]}  Bf3 {[%clk 0:00:17]} 52. Nd4+ {[%clk 0:00:23]} 1-0


[Site "https://www.chess.com"]

[Event "Titled Tuesday Blitz November 07 Late 2023"]
[White "Medeiros Jr, Francisco De Assis"]
[Black "Quirke, Jeffrey"]
[WhiteFideId "2114267"]
[BlackFideId "2013029"]
[WhiteElo "2492"]
[BlackElo "2252"]
[Result "1-0"]
[Round "3"]
[TimeControl "180+1"]
[Date "2023.11.07"]
[WhiteClock "0:00:54"]
[BlackClock "0:00:00"]
[Board "127"]

1. d4 {[%clk 0:03:00]}  d5 {[%clk 0:02:50]} 2. Nf3 {[%clk 0:03:01]}  Nf6 {[%clk 0:02:48]} 3. Bf4 {[%clk 0:02:59]}  g6 {[%clk 0:02:47]} 4. e3 {[%clk 0:02:59]}  Bg7 {[%clk 0:02:48]} 5. Be2 {[%clk 0:02:53]}  O-O {[%clk 0:02:48]} 6. O-O {[%clk 0:02:48]}  c5 {[%clk 0:02:48]} 7. c3 {[%clk 0:02:46]}  b6 {[%clk 0:02:46]} 8. h3 {[%clk 0:02:44]}  Bb7 {[%clk 0:02:46]} 9. Nbd2 {[%clk 0:02:44]}  Nc6 {[%clk 0:02:47]} 10. Re1 {[%clk 0:02:37]}  Nd7 {[%clk 0:02:46]} 11. Qb3 {[%clk 0:02:35]}  e5 {[%clk 0:02:41]} 12. dxe5 {[%clk 0:02:36]}  Ndxe5 {[%clk 0:02:41]} 13. Rad1 {[%clk 0:02:34]}  Na5 {[%clk 0:02:25]} 14. Qa3 {[%clk 0:02:31]}  Qe7 {[%clk 0:02:20]} 15. Nxe5 {[%clk 0:02:29]}  Bxe5 {[%clk 0:02:20]} 16. Bxe5 {[%clk 0:02:29]}  Qxe5 {[%clk 0:02:20]} 17. b4 {[%clk 0:02:27]}  cxb4 {[%clk 0:02:05]} 18. cxb4 {[%clk 0:02:28]}  Nc6 {[%clk 0:01:58]} 19. b5 {[%clk 0:02:22]}  Na5 {[%clk 0:01:55]} 20. Nf3 {[%clk 0:02:11]}  Qf6 {[%clk 0:01:55]} 21. Nd4 {[%clk 0:02:09]}  Rac8 {[%clk 0:01:53]} 22. Rc1 {[%clk 0:02:06]}  Rfd8 {[%clk 0:01:35]} 23. Red1 {[%clk 0:02:04]}  Qg7 {[%clk 0:01:34]} 24. Bf3 {[%clk 0:02:02]}  Qf8 {[%clk 0:01:32]} 25. Qxf8+ {[%clk 0:02:00]}  Kxf8 {[%clk 0:01:33]} 26. h4 {[%clk 0:01:55]}  h5 {[%clk 0:01:33]} 27. a4 {[%clk 0:01:52]}  Nc4 {[%clk 0:01:25]} 28. Ra1 {[%clk 0:01:48]}  Ne5 {[%clk 0:01:19]} 29. Kf1 {[%clk 0:01:42]}  Rc3 {[%clk 0:01:11]} 30. a5 {[%clk 0:01:39]}  Rdc8 {[%clk 0:00:54]} 31. a6 {[%clk 0:01:37]}  Ba8 {[%clk 0:00:52]} 32. Be2 {[%clk 0:01:37]}  Nd7 {[%clk 0:00:39]} 33. g4 {[%clk 0:01:30]}  hxg4 {[%clk 0:00:27]} 34. Bxg4 {[%clk 0:01:31]}  R8c7 {[%clk 0:00:26]} 35. Bxd7 {[%clk 0:01:28]}  Rxd7 {[%clk 0:00:27]} 36. Ke2 {[%clk 0:01:29]}  Rdc7 {[%clk 0:00:24]} 37. h5 {[%clk 0:01:19]}  gxh5 {[%clk 0:00:23]} 38. Rh1 {[%clk 0:01:19]}  Ke7 {[%clk 0:00:16]} 39. Rxh5 {[%clk 0:01:19]}  Rc8 {[%clk 0:00:16]} 40. Rg1 {[%clk 0:01:17]}  Rd8 {[%clk 0:00:04]} 41. Rg7 {[%clk 0:01:15]}  Rc7 {[%clk 0:00:03]} 42. Rhh7 {[%clk 0:01:13]}  Kf6 {[%clk 0:00:02]} 43. Rg3 {[%clk 0:01:03]}  Re7 {[%clk 0:00:01]} 44. Rgh3 {[%clk 0:00:56]}  Rg8 {[%clk 0:00:00]} 45. R7h6+ {[%clk 0:00:54]} 1-0


[Site "https://www.chess.com"]

[Event "Titled Tuesday Blitz November 07 Late 2023"]
[White "Ramadoss, Ashokkumar"]
[Black "Estrada Nieto, Julian"]
[WhiteFideId "5040990"]
[BlackFideId "5101018"]
[WhiteElo "2318"]
[BlackElo "2451"]
[Result "1-0"]
[Round "3"]
[TimeControl "180+1"]
[Date "2023.11.07"]
[WhiteClock "0:00:31"]
[BlackClock "0:00:00"]
[Board "128"]

1. Nf3 {[%clk 0:03:00]}  d5 {[%clk 0:02:58]} 2. c4 {[%clk 0:03:00]}  d4 {[%clk 0:02:58]} 3. b4 {[%clk 0:02:55]}  f6 {[%clk 0:02:32]} 4. d3 {[%clk 0:02:55]}  e5 {[%clk 0:02:32]} 5. a3 {[%clk 0:02:45]}  a5 {[%clk 0:02:29]} 6. b5 {[%clk 0:02:40]}  Nd7 {[%clk 0:02:28]} 7. a4 {[%clk 0:02:40]}  Bb4+ {[%clk 0:02:27]} 8. Bd2 {[%clk 0:02:38]}  Bxd2+ {[%clk 0:02:25]} 9. Nbxd2 {[%clk 0:02:35]}  Nc5 {[%clk 0:02:25]} 10. Nb3 {[%clk 0:02:33]}  Qd6 {[%clk 0:02:23]} 11. Nxc5 {[%clk 0:02:30]}  Qxc5 {[%clk 0:02:23]} 12. g3 {[%clk 0:02:31]}  Ne7 {[%clk 0:02:12]} 13. Bg2 {[%clk 0:02:31]}  O-O {[%clk 0:02:04]} 14. O-O {[%clk 0:02:30]}  Be6 {[%clk 0:02:02]} 15. Nd2 {[%clk 0:02:30]}  Qa7 {[%clk 0:01:41]} 16. Rb1 {[%clk 0:02:08]}  Rad8 {[%clk 0:01:28]} 17. Qc2 {[%clk 0:01:56]}  f5 {[%clk 0:01:17]} 18. Nf3 {[%clk 0:01:51]}  Qc5 {[%clk 0:01:09]} 19. b6 {[%clk 0:01:43]}  c6 {[%clk 0:01:00]} 20. Nd2 {[%clk 0:01:21]}  Ra8 {[%clk 0:00:52]} 21. Rb2 {[%clk 0:01:20]}  Nc8 {[%clk 0:00:45]} 22. Rfb1 {[%clk 0:01:20]}  Ra6 {[%clk 0:00:44]} 23. Nb3 {[%clk 0:00:51]}  Qxb6 {[%clk 0:00:35]} 24. c5 {[%clk 0:00:52]}  Qd8 {[%clk 0:00:26]} 25. Nd2 {[%clk 0:00:48]}  Bd5 {[%clk 0:00:23]} 26. Rxb7 {[%clk 0:00:45]}  Bxg2 {[%clk 0:00:18]} 27. Kxg2 {[%clk 0:00:46]}  Qd5+ {[%clk 0:00:18]} 28. Kg1 {[%clk 0:00:46]}  Ra7 {[%clk 0:00:13]} 29. Rb8 {[%clk 0:00:42]}  Raf7 {[%clk 0:00:11]} 30. Qc4 {[%clk 0:00:41]}  Qxc4 {[%clk 0:00:11]} 31. Nxc4 {[%clk 0:00:41]}  e4 {[%clk 0:00:12]} 32. Nxa5 {[%clk 0:00:33]}  exd3 {[%clk 0:00:11]} 33. exd3 {[%clk 0:00:33]}  f4 {[%clk 0:00:12]} 34. R1b2 {[%clk 0:00:33]}  fxg3 {[%clk 0:00:12]} 35. hxg3 {[%clk 0:00:33]}  h6 {[%clk 0:00:12]} 36. Nxc6 {[%clk 0:00:33]}  Ne7 {[%clk 0:00:10]} 37. Rxf8+ {[%clk 0:00:32]}  Kxf8 {[%clk 0:00:09]} 38. Nxe7 {[%clk 0:00:32]}  Rxe7 {[%clk 0:00:09]} 39. Rb8+ {[%clk 0:00:31]}  Kf7 {[%clk 0:00:09]} 40. c6 {[%clk 0:00:32]}  Re1+ {[%clk 0:00:09]} 41. Kg2 {[%clk 0:00:31]}  Rc1 {[%clk 0:00:10]} 42. Rb7+ {[%clk 0:00:30]}  Kf6 {[%clk 0:00:09]} 43. c7 {[%clk 0:00:31]}  Rc3 {[%clk 0:00:09]} 44. a5 {[%clk 0:00:31]}  g5 {[%clk 0:00:00]} 45. a6 {[%clk 0:00:31]} 1-0


[Site "https://www.chess.com"]

[Event "Titled Tuesday Blitz November 07 Late 2023"]
[White "Sarkar, Justin"]
[Black "Jovic, Stanoje"]
[WhiteFideId "2010011"]
[BlackFideId "905020"]
[WhiteElo "2230"]
[BlackElo "2450"]
[Result "1-0"]
[Round "3"]
[TimeControl "180+1"]
[Date "2023.11.07"]
[WhiteClock "0:00:15"]
[BlackClock "0:00:00"]
[Board "129"]

1. d4 {[%clk 0:02:58]}  Nf6 {[%clk 0:02:59]} 2. c4 {[%clk 0:02:58]}  e6 {[%clk 0:02:59]} 3. g3 {[%clk 0:02:58]}  d5 {[%clk 0:02:58]} 4. Bg2 {[%clk 0:02:57]}  Bb4+ {[%clk 0:02:57]} 5. Bd2 {[%clk 0:02:53]}  Be7 {[%clk 0:02:57]} 6. Nf3 {[%clk 0:02:51]}  O-O {[%clk 0:02:56]} 7. O-O {[%clk 0:02:50]}  c6 {[%clk 0:02:56]} 8. Qc2 {[%clk 0:02:48]}  a5 {[%clk 0:02:56]} 9. Bf4 {[%clk 0:02:43]}  Nbd7 {[%clk 0:02:52]} 10. Rd1 {[%clk 0:02:40]}  a4 {[%clk 0:02:52]} 11. c5 {[%clk 0:02:28]}  b6 {[%clk 0:02:50]} 12. cxb6 {[%clk 0:02:22]}  Qxb6 {[%clk 0:02:47]} 13. Nc3 {[%clk 0:02:22]}  a3 {[%clk 0:02:41]} 14. b3 {[%clk 0:02:18]}  c5 {[%clk 0:02:35]} 15. e4 {[%clk 0:02:02]}  dxe4 {[%clk 0:02:24]} 16. Nxe4 {[%clk 0:01:58]}  Nxe4 {[%clk 0:02:24]} 17. Qxe4 {[%clk 0:01:57]}  Bb7 {[%clk 0:02:24]} 18. Qe2 {[%clk 0:01:48]}  Bf6 {[%clk 0:02:15]} 19. Ne5 {[%clk 0:01:35]}  Bxe5 {[%clk 0:01:59]} 20. dxe5 {[%clk 0:01:28]}  Bxg2 {[%clk 0:01:58]} 21. Kxg2 {[%clk 0:01:27]}  Rfd8 {[%clk 0:01:55]} 22. h4 {[%clk 0:01:25]}  h6 {[%clk 0:01:53]} 23. Rd6 {[%clk 0:01:24]}  Qb7+ {[%clk 0:01:50]} 24. Qf3 {[%clk 0:01:22]}  Qxf3+ {[%clk 0:01:49]} 25. Kxf3 {[%clk 0:01:23]}  Nf8 {[%clk 0:01:40]} 26. Rad1 {[%clk 0:01:10]}  Rxd6 {[%clk 0:01:39]} 27. exd6 {[%clk 0:00:51]}  Nd7 {[%clk 0:01:35]} 28. Ke4 {[%clk 0:00:51]}  f5+ {[%clk 0:01:32]} 29. Kd3 {[%clk 0:00:48]}  Kf7 {[%clk 0:01:26]} 30. Kc4 {[%clk 0:00:44]}  e5 {[%clk 0:01:23]} 31. Be3 {[%clk 0:00:43]}  Ke6 {[%clk 0:01:23]} 32. Bxc5 {[%clk 0:00:41]}  Rc8 {[%clk 0:01:22]} 33. b4 {[%clk 0:00:40]}  e4 {[%clk 0:01:11]} 34. h5 {[%clk 0:00:36]}  Ne5+ {[%clk 0:00:53]} 35. Kb3 {[%clk 0:00:35]}  Nd3 {[%clk 0:00:53]} 36. Kxa3 {[%clk 0:00:31]}  Nxf2 {[%clk 0:00:48]} 37. Bxf2 {[%clk 0:00:28]}  Kd7 {[%clk 0:00:40]} 38. Bc5 {[%clk 0:00:28]}  g5 {[%clk 0:00:38]} 39. hxg6 {[%clk 0:00:27]}  Rg8 {[%clk 0:00:38]} 40. Kb3 {[%clk 0:00:22]}  Rxg6 {[%clk 0:00:38]} 41. Rg1 {[%clk 0:00:22]}  Rg4 {[%clk 0:00:26]} 42. a4 {[%clk 0:00:21]}  h5 {[%clk 0:00:26]} 43. a5 {[%clk 0:00:20]}  Kc6 {[%clk 0:00:24]} 44. a6 {[%clk 0:00:20]}  Rg8 {[%clk 0:00:24]} 45. a7 {[%clk 0:00:19]}  Kb7 {[%clk 0:00:16]} 46. Kc4 {[%clk 0:00:19]}  Ka8 {[%clk 0:00:15]} 47. Kd5 {[%clk 0:00:19]}  Kb7 {[%clk 0:00:15]} 48. d7 {[%clk 0:00:19]}  Kc7 {[%clk 0:00:14]} 49. Ke6 {[%clk 0:00:17]}  Rd8 {[%clk 0:00:10]} 50. Bd6+ {[%clk 0:00:15]}  Kb7 {[%clk 0:00:00]} 51. Ke7 {[%clk 0:00:15]} 1-0


[Site "https://www.chess.com"]

[Event "Titled Tuesday Blitz November 07 Late 2023"]
[White "Bazzano, Sebastian"]
[Black "Abduzhaparov"]
[WhiteFideId "104566"]
[WhiteElo "2243"]
[BlackElo "2446"]
[Result "1-0"]
[Round "3"]
[TimeControl "180+1"]
[Date "2023.11.07"]
[WhiteClock "0:00:09"]
[BlackClock "0:00:21"]
[Board "130"]

1. d4 {[%clk 0:03:00]}  d6 {[%clk 0:02:55]} 2. e4 {[%clk 0:02:59]}  Nf6 {[%clk 0:02:56]} 3. Nc3 {[%clk 0:02:59]}  e5 {[%clk 0:02:57]} 4. Nf3 {[%clk 0:02:58]}  Nbd7 {[%clk 0:02:57]} 5. Be3 {[%clk 0:02:57]}  Be7 {[%clk 0:02:57]} 6. h3 {[%clk 0:02:57]}  c6 {[%clk 0:02:58]} 7. Qd2 {[%clk 0:02:57]}  b5 {[%clk 0:02:58]} 8. a3 {[%clk 0:02:48]}  Bb7 {[%clk 0:02:57]} 9. Bd3 {[%clk 0:02:35]}  a5 {[%clk 0:02:56]} 10. O-O {[%clk 0:02:29]}  b4 {[%clk 0:02:56]} 11. axb4 {[%clk 0:02:29]}  axb4 {[%clk 0:02:57]} 12. Ne2 {[%clk 0:02:20]}  c5 {[%clk 0:02:56]} 13. dxe5 {[%clk 0:02:14]}  dxe5 {[%clk 0:02:41]} 14. Ng3 {[%clk 0:02:05]}  O-O {[%clk 0:02:41]} 15. Nf5 {[%clk 0:01:38]}  Nxe4 {[%clk 0:02:27]} 16. Bxe4 {[%clk 0:01:30]}  Bxe4 {[%clk 0:02:26]} 17. Rxa8 {[%clk 0:01:18]}  Bxa8 {[%clk 0:02:27]} 18. Rd1 {[%clk 0:01:05]}  Bc6 {[%clk 0:02:20]} 19. Qe2 {[%clk 0:00:36]}  Qe8 {[%clk 0:01:35]} 20. Qa6 {[%clk 0:00:26]}  Nb8 {[%clk 0:01:31]} 21. Qa7 {[%clk 0:00:22]}  Bxf3 {[%clk 0:01:14]} 22. Nxe7+ {[%clk 0:00:21]}  Kh8 {[%clk 0:01:09]} 23. gxf3 {[%clk 0:00:21]}  f5 {[%clk 0:01:03]} 24. Bxc5 {[%clk 0:00:20]}  Rf7 {[%clk 0:01:02]} 25. Qc7 {[%clk 0:00:19]}  Na6 {[%clk 0:01:00]} 26. Qxe5 {[%clk 0:00:15]}  Qa8 {[%clk 0:00:31]} 27. Nc6 {[%clk 0:00:15]}  Nxc5 {[%clk 0:00:26]} 28. Rd8+ {[%clk 0:00:14]}  Qxd8 {[%clk 0:00:27]} 29. Nxd8 {[%clk 0:00:15]}  Rf8 {[%clk 0:00:28]} 30. Qe7 {[%clk 0:00:14]}  Ne6 {[%clk 0:00:24]} 31. Nxe6 {[%clk 0:00:12]}  Rg8 {[%clk 0:00:25]} 32. Qf7 {[%clk 0:00:12]}  b3 {[%clk 0:00:25]} 33. cxb3 {[%clk 0:00:11]}  f4 {[%clk 0:00:26]} 34. Nxf4 {[%clk 0:00:11]}  h6 {[%clk 0:00:26]} 35. Qg6 {[%clk 0:00:10]}  Rf8 {[%clk 0:00:25]} 36. Ne6 {[%clk 0:00:10]}  Rg8 {[%clk 0:00:25]} 37. Kg2 {[%clk 0:00:09]}  h5 {[%clk 0:00:21]} 38. Qxh5# {[%clk 0:00:09]} 1-0


[Site "https://www.chess.com"]

[Event "Titled Tuesday Blitz November 07 Late 2023"]
[White "Marchesich, Giovanni"]
[Black "Smirnov, Timofey"]
[WhiteFideId "2824790"]
[BlackFideId "24176427"]
[WhiteElo "2417"]
[BlackElo "2159"]
[Result "1-0"]
[Round "3"]
[TimeControl "180+1"]
[Date "2023.11.07"]
[WhiteClock "0:00:43"]
[BlackClock "0:00:00"]
[Board "132"]

1. d4 {[%clk 0:03:00]}  d5 {[%clk 0:02:55]} 2. Nc3 {[%clk 0:03:01]}  Nf6 {[%clk 0:02:53]} 3. Bf4 {[%clk 0:03:01]}  a6 {[%clk 0:02:51]} 4. e3 {[%clk 0:03:02]}  e6 {[%clk 0:02:50]} 5. g4 {[%clk 0:03:02]}  h6 {[%clk 0:02:50]} 6. h4 {[%clk 0:03:00]}  Bd6 {[%clk 0:02:47]} 7. Bg2 {[%clk 0:02:53]}  Bxf4 {[%clk 0:02:40]} 8. exf4 {[%clk 0:02:54]}  Nc6 {[%clk 0:02:35]} 9. g5 {[%clk 0:02:52]}  hxg5 {[%clk 0:02:34]} 10. fxg5 {[%clk 0:02:52]}  Nh5 {[%clk 0:02:32]} 11. Nge2 {[%clk 0:02:47]}  g6 {[%clk 0:02:27]} 12. Qd3 {[%clk 0:02:47]}  Nb4 {[%clk 0:02:22]} 13. Qd2 {[%clk 0:02:47]}  Nc6 {[%clk 0:02:22]} 14. O-O-O {[%clk 0:02:44]}  Bd7 {[%clk 0:02:21]} 15. Rhe1 {[%clk 0:02:44]}  Qe7 {[%clk 0:02:19]} 16. Bxd5 {[%clk 0:01:47]}  exd5 {[%clk 0:02:17]} 17. Nf4 {[%clk 0:01:47]}  Be6 {[%clk 0:02:14]} 18. Ncxd5 {[%clk 0:01:47]}  Qd6 {[%clk 0:02:07]} 19. Nxh5 {[%clk 0:01:42]}  gxh5 {[%clk 0:01:50]} 20. Nf6+ {[%clk 0:01:42]}  Kd8 {[%clk 0:01:41]} 21. d5 {[%clk 0:01:43]}  Bg4 {[%clk 0:01:18]} 22. dxc6 {[%clk 0:01:16]}  Bxd1 {[%clk 0:01:14]} 23. cxb7 {[%clk 0:01:15]}  Qxd2+ {[%clk 0:01:08]} 24. Kxd2 {[%clk 0:01:02]}  Rb8 {[%clk 0:01:08]} 25. Rxd1 {[%clk 0:00:59]}  Rxb7 {[%clk 0:01:07]} 26. Kc3+ {[%clk 0:00:59]}  Kc8 {[%clk 0:00:59]} 27. Rd7 {[%clk 0:00:47]}  c6 {[%clk 0:00:50]} 28. Rxb7 {[%clk 0:00:44]}  Kxb7 {[%clk 0:00:51]} 29. f4 {[%clk 0:00:44]}  Kc7 {[%clk 0:00:44]} 30. f5 {[%clk 0:00:43]}  Kd6 {[%clk 0:00:41]} 31. g6 {[%clk 0:00:44]}  fxg6 {[%clk 0:00:41]} 32. fxg6 {[%clk 0:00:44]}  Ke6 {[%clk 0:00:03]} 33. g7 {[%clk 0:00:44]}  Ra8 {[%clk 0:00:02]} 34. g8=Q+ {[%clk 0:00:44]}  Rxg8 {[%clk 0:00:01]} 35. Nxg8 {[%clk 0:00:45]}  Kf7 {[%clk 0:00:00]} 36. Nh6+ {[%clk 0:00:43]} 1-0


[Site "https://www.chess.com"]

[Event "Titled Tuesday Blitz November 07 Late 2023"]
[White "Zakarian, David"]
[Black "Aung Thant Zin"]
[WhiteFideId "13301276"]
[BlackFideId "13000063"]
[WhiteElo "2414"]
[BlackElo "2006"]
[Result "0-1"]
[Round "3"]
[TimeControl "180+1"]
[Date "2023.11.07"]
[WhiteClock "0:01:26"]
[BlackClock "0:00:42"]
[Board "133"]

1. d4 {[%clk 0:03:00]}  Nf6 {[%clk 0:02:53]} 2. c4 {[%clk 0:03:01]}  e6 {[%clk 0:02:53]} 3. Nf3 {[%clk 0:03:01]}  b6 {[%clk 0:02:52]} 4. a3 {[%clk 0:03:00]}  Bb7 {[%clk 0:02:52]} 5. Nc3 {[%clk 0:03:01]}  d5 {[%clk 0:02:52]} 6. cxd5 {[%clk 0:03:00]}  Nxd5 {[%clk 0:02:52]} 7. Qc2 {[%clk 0:03:00]}  Be7 {[%clk 0:02:51]} 8. e4 {[%clk 0:03:00]}  Nxc3 {[%clk 0:02:50]} 9. bxc3 {[%clk 0:03:01]}  O-O {[%clk 0:02:49]} 10. Bd3 {[%clk 0:03:01]}  Nd7 {[%clk 0:02:48]} 11. O-O {[%clk 0:03:01]}  c5 {[%clk 0:02:48]} 12. Be3 {[%clk 0:02:59]}  h6 {[%clk 0:02:26]} 13. Rfd1 {[%clk 0:02:55]}  Qc7 {[%clk 0:02:25]} 14. Rac1 {[%clk 0:02:52]}  Rfd8 {[%clk 0:02:24]} 15. Qe2 {[%clk 0:02:49]}  Nf8 {[%clk 0:02:15]} 16. Ne5 {[%clk 0:02:36]}  Rac8 {[%clk 0:02:12]} 17. Qg4 {[%clk 0:02:32]}  Bd6 {[%clk 0:01:39]} 18. Bxh6 {[%clk 0:02:30]}  Bxe5 {[%clk 0:01:39]} 19. dxe5 {[%clk 0:02:23]}  Qxe5 {[%clk 0:01:38]} 20. f4 {[%clk 0:02:11]}  Qf6 {[%clk 0:01:38]} 21. Bg5 {[%clk 0:02:11]}  Qg6 {[%clk 0:01:38]} 22. e5 {[%clk 0:02:11]}  Rxd3 {[%clk 0:01:36]} 23. Rxd3 {[%clk 0:02:09]}  Qxd3 {[%clk 0:01:36]} 24. Rd1 {[%clk 0:02:05]}  Qf5 {[%clk 0:01:27]} 25. Qg3 {[%clk 0:02:02]}  Bd5 {[%clk 0:01:15]} 26. h4 {[%clk 0:01:54]}  c4 {[%clk 0:01:12]} 27. h5 {[%clk 0:01:49]}  Nd7 {[%clk 0:01:01]} 28. Bh6 {[%clk 0:01:42]}  g6 {[%clk 0:01:00]} 29. hxg6 {[%clk 0:01:40]}  Qxg6 {[%clk 0:01:00]} 30. Bg5 {[%clk 0:01:40]}  Nc5 {[%clk 0:00:54]} 31. Qh4 {[%clk 0:01:31]}  Qc2 {[%clk 0:00:43]} 32. Re1 {[%clk 0:01:26]}  Qxg2# {[%clk 0:00:42]} 0-1


[Site "https://www.chess.com"]

[Event "Titled Tuesday Blitz November 07 Late 2023"]
[White "Oglaza, Oskar"]
[Black "Flameboard08"]
[WhiteFideId "1194402"]
[WhiteElo "2410"]
[BlackElo "2602"]
[Result "1-0"]
[Round "3"]
[TimeControl "180+1"]
[Date "2023.11.07"]
[WhiteClock "0:00:30"]
[BlackClock "0:00:00"]
[Board "134"]

1. e4 {[%clk 0:03:00]}  b6 {[%clk 0:02:59]} 2. d4 {[%clk 0:02:59]}  Bb7 {[%clk 0:02:56]} 3. Nc3 {[%clk 0:02:58]}  e6 {[%clk 0:02:56]} 4. Bd3 {[%clk 0:02:48]}  Nf6 {[%clk 0:02:55]} 5. Qe2 {[%clk 0:02:34]}  Bb4 {[%clk 0:02:49]} 6. Bd2 {[%clk 0:02:33]}  d5 {[%clk 0:02:43]} 7. exd5 {[%clk 0:01:52]}  Bxc3 {[%clk 0:02:40]} 8. Bxc3 {[%clk 0:01:52]}  Nxd5 {[%clk 0:02:39]} 9. Bd2 {[%clk 0:01:52]}  Nc6 {[%clk 0:02:22]} 10. Nf3 {[%clk 0:01:51]}  Ncb4 {[%clk 0:02:17]} 11. Be4 {[%clk 0:01:42]}  Nc6 {[%clk 0:01:40]} 12. O-O {[%clk 0:01:24]}  Nf6 {[%clk 0:01:35]} 13. Bg5 {[%clk 0:01:11]}  O-O {[%clk 0:01:20]} 14. Rad1 {[%clk 0:01:01]}  h6 {[%clk 0:01:14]} 15. Bxf6 {[%clk 0:01:01]}  Qxf6 {[%clk 0:01:15]} 16. Ne5 {[%clk 0:01:00]}  Na5 {[%clk 0:00:33]} 17. b4 {[%clk 0:00:47]}  Qf4 {[%clk 0:00:18]} 18. f3 {[%clk 0:00:35]}  f5 {[%clk 0:00:05]} 19. Bxb7 {[%clk 0:00:24]}  Nxb7 {[%clk 0:00:04]} 20. Ng6 {[%clk 0:00:24]}  Qd6 {[%clk 0:00:05]} 21. Nxf8 {[%clk 0:00:25]}  Rxf8 {[%clk 0:00:05]} 22. c3 {[%clk 0:00:25]}  a5 {[%clk 0:00:04]} 23. a3 {[%clk 0:00:25]}  Re8 {[%clk 0:00:03]} 24. Rfe1 {[%clk 0:00:25]}  Kh7 {[%clk 0:00:02]} 25. d5 {[%clk 0:00:25]}  e5 {[%clk 0:00:02]} 26. Qb5 {[%clk 0:00:26]}  Re7 {[%clk 0:00:02]} 27. Qc6 {[%clk 0:00:26]}  Nd8 {[%clk 0:00:01]} 28. Qxd6 {[%clk 0:00:26]}  cxd6 {[%clk 0:00:02]} 29. c4 {[%clk 0:00:27]}  Rc7 {[%clk 0:00:02]} 30. Rc1 {[%clk 0:00:27]}  axb4 {[%clk 0:00:02]} 31. axb4 {[%clk 0:00:28]}  Nf7 {[%clk 0:00:02]} 32. Re2 {[%clk 0:00:28]}  g5 {[%clk 0:00:02]} 33. Rec2 {[%clk 0:00:28]}  h5 {[%clk 0:00:01]} 34. c5 {[%clk 0:00:28]}  bxc5 {[%clk 0:00:02]} 35. bxc5 {[%clk 0:00:29]}  Rd7 {[%clk 0:00:03]} 36. c6 {[%clk 0:00:29]}  Rc7 {[%clk 0:00:03]} 37. Rb2 {[%clk 0:00:29]}  Nd8 {[%clk 0:00:04]} 38. Rb8 {[%clk 0:00:30]}  Nf7 {[%clk 0:00:00]} 39. Rb7 {[%clk 0:00:30]} 1-0


[Site "https://www.chess.com"]